bitfinex-derivatives/quotes_BNBF0:USTF0_20250715
["timestamp","ask_amount","ask_price","bid_price","bid_amount"]
[1752538098320,0.25271781,688.58,688.34,0.54847493]
[1752538098615,0.25271781,688.58,688.35,0.54847493]
[1752538098816,0.25271781,688.58,688.36,0.54847493]
[1752538099117,0.25271781,688.58,688.37,0.54847493]
[1752538099320,0.25271781,688.58,688.38,0.54847493]
[1752538099517,0.25271781,688.58,688.39,0.54847493]
[1752538099721,0.25271781,688.58,688.4,0.54847493]
[1752538100019,0.25271781,688.58,688.41,0.54847493]
[1752538100220,0.25271781,688.58,688.42,0.54847493]
[1752538100416,0.25271781,688.58,688.43,0.54847493]
[1752538100619,0.25271781,688.58,688.44,0.54847493]
[1752538100818,0.25271781,688.58,688.45,0.54847493]
[1752538101019,0.25271781,688.58,688.46,0.54847493]
[1752538101219,0.25271781,688.58,688.05,0.97623821]
[1752538101220,0.25271781,688.58,688.47,0.54847493]
[1752538101716,0.25271781,688.58,688.48,0.5485696]
[1752538101918,0.25271781,688.58,688.49,0.5485696]
[1752538102118,0.25271781,688.58,688.5,0.5485696]
[1752538102316,0.25271781,688.58,688.51,0.5485696]
[1752538102520,0.25271781,688.58,688.52,0.5485696]
[1752538102719,0.25271781,688.58,688.53,0.5485696]
[1752538102923,0.25271781,688.58,688.54,0.5485696]
[1752538103117,0.25271781,688.58,688.55,0.5485696]
[1752538103316,0.25271781,688.58,688.56,0.5485696]
[1752538103516,0.25271781,688.58,688.57,0.5485696]
[1752538107429,0.25271781,688.58,688.57,0.54860969]
[1752538110427,0.25271781,688.58,688.57,0.54866322]
[1752538119140,0.25271781,688.58,688.0,0.97623821]
[1752538119341,0.25271781,688.58,688.01,0.5486014]
[1752538119540,0.25271781,688.58,688.02,0.5486014]
[1752538119742,0.25271781,688.58,688.03,0.5486014]
[1752538120040,0.25271781,688.58,688.04,0.5486014]
[1752538120236,0.25271781,688.58,688.01,0.97623821]
[1752538120438,0.25271781,688.58,688.02,0.54859318]
[1752538120740,0.25271781,688.58,688.03,0.54859318]
[1752538120938,0.25271781,688.58,688.04,0.54859318]
[1752538121140,0.25271781,688.58,688.05,0.54859318]
[1752538121338,0.25271781,688.58,688.06,0.54859318]
[1752538121536,0.25271781,688.58,688.07,0.54859318]
[1752538121836,0.25271781,688.58,688.08,0.54859318]
[1752538122038,0.25271781,688.58,688.09,0.54859318]
[1752538122240,0.25271781,688.58,688.1,0.54859318]
[1752538122438,0.25271781,688.58,688.11,0.54859318]
[1752538122641,0.25271781,688.58,688.12,0.54859318]
[1752538122839,0.25271781,688.58,688.13,0.54859318]
[1752538123037,0.25271781,688.58,688.14,0.54859318]
[1752538123238,0.25271781,688.58,688.15,0.54859318]
[1752538123443,0.25271781,688.58,688.16,0.54859318]
[1752538123639,0.25271781,688.58,688.17,0.54859318]
[1752538123943,0.25271781,688.58,688.18,0.54859318]
[1752538124241,0.25271781,688.58,688.19,0.54859318]
[1752538124443,0.25271781,688.58,688.2,0.54859318]
[1752538124644,0.25271781,688.58,688.21,0.54859318]
[1752538124844,0.25271781,688.58,688.22,0.54859318]
[1752538125039,0.25271781,688.58,688.23,0.54859318]
[1752538125239,0.25271781,688.58,688.24,0.54859318]
[1752538125542,0.25271781,688.58,688.25,0.54859318]
[1752538125741,0.25271781,688.58,688.26,0.54859318]
[1752538125943,0.25271781,688.58,688.27,0.54859318]
[1752538126141,0.25271781,688.58,687.95,0.97623821]
[1752538126142,0.25271781,688.58,688.28,0.54859318]
[1752538126344,0.25271781,688.58,688.29,0.54859318]
[1752538126645,0.25271781,688.58,688.3,0.54859318]
[1752538126945,0.25271781,688.58,688.31,0.54859318]
[1752538127145,0.25271781,688.58,688.32,0.54859318]
[1752538127346,0.25271781,688.58,688.33,0.54859318]
[1752538127546,0.25271781,688.58,688.34,0.54859318]
[1752538127741,0.25271781,688.58,688.35,0.54859318]
[1752538127949,0.25271781,688.58,688.36,0.54859318]
[1752538128346,0.25271781,688.58,688.37,0.54860916]
[1752538128547,0.25271781,688.58,688.38,0.54860916]
[1752538128748,0.25271781,688.58,687.96,0.97623821]
[1752538128950,0.25271781,688.58,687.97,0.54863289]
[1752538129148,0.25271781,688.58,687.98,0.54863289]
[1752538129448,0.25271781,688.58,687.99,0.54863289]
[1752538129645,0.25271781,688.58,688.0,0.54863289]
[1752538129946,0.25271781,688.58,688.01,0.54863289]
[1752538130148,0.25271781,688.58,688.02,0.54863289]
[1752538130448,0.25271781,688.58,688.03,0.54863289]
[1752538130648,0.25271781,688.58,688.04,0.54863289]
[1752538130845,0.25271781,688.58,688.05,0.54863289]
[1752538131047,0.25271781,688.58,688.06,0.54863289]
[1752538131250,0.25271781,688.58,688.07,0.54863289]
[1752538131452,0.25271781,688.58,688.08,0.54863289]
[1752538131749,0.25271781,688.58,688.09,0.54863289]
[1752538131950,0.25271781,688.58,688.1,0.54863289]
[1752538132147,0.25271781,688.58,688.11,0.54863289]
[1752538132351,0.25271781,688.58,688.12,0.54863289]
[1752538132547,0.25271781,688.58,688.13,0.54863289]
[1752538132750,0.25271781,688.58,688.14,0.54863289]
[1752538132950,0.25271781,688.58,688.15,0.54863289]
[1752538133153,0.25271781,688.58,688.16,0.54863289]
[1752538133350,0.25271781,688.58,688.17,0.54863289]
[1752538133653,0.25271781,688.58,688.18,0.54863289]
[1752538133850,0.25271781,688.58,688.19,0.54863289]
[1752538134150,0.25271781,688.58,688.2,0.54863289]
[1752538134453,0.25271781,688.58,688.21,0.54863289]
[1752538134654,0.25271781,688.58,688.22,0.54863289]
[1752538134853,0.25271781,688.58,688.23,0.54863289]
[1752538135049,0.25271781,688.58,688.24,0.54863289]
[1752538135254,0.25271781,688.58,688.25,0.54863289]
[1752538135454,0.25271781,688.58,688.26,0.54863289]
[1752538135654,0.25271781,688.58,688.27,0.54863289]
[1752538135856,0.25271781,688.58,688.28,0.54863289]
[1752538136054,0.25271781,688.58,688.29,0.54863289]
[1752538136255,0.25271781,688.58,688.3,0.54863289]
[1752538136453,0.25271781,688.58,688.31,0.54863289]
[1752538136753,0.25271781,688.58,687.98,0.97623821]
[1752538137157,0.25271781,688.58,687.99,0.54881144]
[1752538137453,0.25271781,688.58,688.0,0.54881144]
[1752538137653,0.25271781,688.58,688.01,0.54881144]
[1752538137856,0.25271781,688.58,688.02,0.54881144]
[1752538138052,0.25271781,688.58,688.03,0.54881144]
[1752538138257,0.25271781,688.58,688.04,0.54881144]
[1752538138456,0.25271781,688.58,688.05,0.54881144]
[1752538138657,0.25271781,688.58,688.06,0.54881144]
[1752538138853,0.25271781,688.58,688.07,0.54881144]
[1752538139057,0.25271781,688.58,688.08,0.54881144]
[1752538139255,0.25271781,688.58,688.09,0.54881144]
[1752538139554,0.25271781,688.58,688.1,0.54881144]
[1752538139856,0.25271781,688.58,688.11,0.54881144]
[1752538140056,0.25271781,688.58,688.12,0.54881144]
[1752538140257,0.25271781,688.58,688.13,0.54881144]
[1752538140457,0.25271781,688.58,688.14,0.54881144]
[1752538140757,0.25271781,688.58,687.67,0.25276645]
[1752538140758,0.25271781,688.58,688.15,0.54881144]
[1752538140959,0.25271781,688.58,688.16,0.54881144]
[1752538141154,0.25271781,688.58,688.17,0.54881144]
[1752538141458,0.25271781,688.58,688.18,0.54881144]
[1752538141658,1.07927295,688.98,688.19,0.54881144]
[1752538141953,0.25269945,688.67,688.2,0.54881144]
[1752538142155,1.30010591,689.15,688.21,0.54881144]
[1752538142353,0.25269945,688.79,688.22,0.54881144]
[1752538142554,1.07945854,689.14,688.23,0.54881144]
[1752538142755,1.07945854,689.14,688.24,0.54881144]
[1752538142958,0.25268202,688.67,688.25,0.54881144]
[1752538143155,1.07945854,689.13,688.26,0.54881144]
[1752538143353,0.25268019,688.67,688.27,0.54881144]
[1752538143553,0.25268019,688.67,688.01,0.97623821]
[1752538143554,1.07945854,689.12,688.28,0.54881144]
[1752538143755,1.30010591,689.07,688.29,0.54881144]
[1752538143955,0.25267835,688.67,688.3,0.54881144]
[1752538144158,1.07945854,689.06,688.31,0.54881144]
[1752538144360,0.25268202,688.67,688.32,0.54881144]
[1752538144560,1.30010591,688.93,688.33,0.54881144]
[1752538144856,0.25268019,688.67,688.34,0.54887356]
[1752538145057,1.30010591,688.89,688.35,0.54887356]
[1752538145256,1.30010591,688.89,688.36,0.54887356]
[1752538145455,1.30010591,688.89,688.12,0.97623821]
[1752538145456,0.25269395,688.67,688.37,0.54887356]
[1752538145656,1.30010591,688.89,688.38,0.54887356]
[1752538145860,0.2526912,688.67,688.39,0.54887356]
[1752538146061,0.2526912,688.67,688.4,0.54887356]
[1752538146264,1.30010591,688.91,688.41,0.54887356]
[1752538146460,0.25268753,688.67,688.42,0.54887356]
[1752538146759,1.30010591,688.91,688.43,0.54887356]
[1752538146965,0.25268478,688.67,688.44,0.54887356]
[1752538147160,1.30010591,688.91,688.45,0.54887356]
[1752538147462,0.25268294,688.71,688.46,0.54887356]
[1752538147662,1.30010591,688.91,688.47,0.54887356]
[1752538147862,1.30010591,688.91,688.48,0.54887356]
[1752538148159,1.30010591,688.9,688.49,0.54887356]
[1752538148363,1.30010591,688.91,688.5,0.54887356]
[1752538148662,0.25267927,688.81,688.51,0.54887356]
[1752538148861,0.25267927,688.81,688.52,0.54887356]
[1752538149161,0.25267927,688.81,688.53,0.54887356]
[1752538149364,0.25267927,688.81,688.54,0.54887356]
[1752538149562,0.25267927,688.81,688.55,0.54887356]
[1752538149863,0.25267927,688.81,688.56,0.54887356]
[1752538150066,0.25267927,688.81,688.57,0.54887356]
[1752538150360,0.25267927,688.81,688.58,0.54887356]
[1752538150561,0.25267927,688.81,688.59,0.54887356]
[1752538150767,0.25267927,688.81,688.6,0.54887356]
[1752538150966,0.25267927,688.81,688.61,0.54887356]
[1752538151263,0.25267927,688.81,688.62,0.54887356]
[1752538151460,0.25267927,688.81,688.63,0.54887356]
[1752538151665,0.25267927,688.81,688.64,0.54887356]
[1752538151863,0.25267927,688.81,688.65,0.54887356]
[1752538152064,0.25267927,688.81,688.66,0.54887356]
[1752538152263,0.25267927,688.81,688.67,0.54887356]
[1752538152565,0.25267927,688.81,688.68,0.54887356]
[1752538152866,0.25267927,688.81,688.69,0.54887356]
[1752538153063,0.25267927,688.81,688.7,0.54887356]
[1752538153364,0.25267927,688.81,688.71,0.54887356]
[1752538153562,0.25267927,688.81,688.72,0.54887356]
[1752538153762,0.25267927,688.81,688.1,0.97623821]
[1752538153962,0.25267927,688.81,688.11,0.54880053]
[1752538154164,0.25267927,688.81,688.12,0.54880053]
[1752538154368,0.25267927,688.81,688.13,0.54880053]
[1752538154565,0.25267927,688.81,688.14,0.54880053]
[1752538154764,0.25267927,688.81,688.15,0.54880053]
[1752538155062,0.25267927,688.81,688.16,0.54880053]
[1752538155262,0.25267927,688.81,688.17,0.54880053]
[1752538155465,0.25267927,688.81,688.18,0.54880053]
[1752538155669,0.25267927,688.81,688.19,0.54880053]
[1752538155972,0.25267927,688.81,688.2,0.54880053]
[1752538156170,0.25267927,688.81,688.21,0.54880053]
[1752538156373,0.25267927,688.81,688.22,0.54880053]
[1752538156573,0.25267927,688.81,688.23,0.54880053]
[1752538156872,0.25267927,688.81,688.24,0.54880053]
[1752538157067,0.25267927,688.81,688.25,0.54880053]
[1752538157274,0.25267927,688.81,688.26,0.54880053]
[1752538157471,0.25267927,688.81,688.27,0.54880053]
[1752538157672,0.25267927,688.81,688.1,0.97623821]
[1752538157673,0.25267927,688.81,688.28,0.54880053]
[1752538157975,0.25267927,688.81,688.29,0.54880053]
[1752538158176,0.25267927,688.81,688.3,0.54880053]
[1752538158377,0.25267927,688.81,688.31,0.54880053]
[1752538158676,0.25267927,688.81,688.32,0.54880053]
[1752538158876,0.25267927,688.81,688.33,0.54880053]
[1752538159078,0.25267927,688.81,688.34,0.54880053]
[1752538159272,0.25267927,688.81,688.35,0.54880053]
[1752538159577,0.25267927,688.81,688.36,0.54880053]
[1752538159775,0.25267927,688.81,688.37,0.54880053]
[1752538159980,0.25267927,688.81,688.38,0.54880053]
[1752538160177,0.25267927,688.81,688.39,0.54880053]
[1752538160380,0.25267927,688.81,688.4,0.54880053]
[1752538160593,0.25267927,688.81,688.41,0.54880053]
[1752538160779,0.25267927,688.81,688.42,0.54880053]
[1752538160983,0.25267927,688.81,688.43,0.54880053]
[1752538161280,0.25267927,688.81,688.44,0.54880053]
[1752538161579,0.25267927,688.81,688.45,0.54880053]
[1752538161782,0.25267927,688.81,688.46,0.54880053]
[1752538161981,0.25267927,688.81,688.47,0.54880053]
[1752538162181,0.25267927,688.81,688.48,0.54880053]
[1752538162385,0.25267927,688.81,688.49,0.54880053]
[1752538162581,0.25267927,688.81,688.5,0.54880053]
[1752538162883,0.25267927,688.81,688.51,0.54880053]
[1752538163087,0.25267927,688.81,688.52,0.54895623]
[1752538163283,0.25267927,688.81,688.53,0.54895623]
[1752538163482,0.25267927,688.81,688.54,0.54895623]
[1752538163682,0.25267927,688.81,688.55,0.54895623]
[1752538163979,0.25267927,688.81,688.56,0.54895623]
[1752538164281,0.25267927,688.81,688.57,0.54895623]
[1752538164483,0.25267927,688.81,688.58,0.54895623]
[1752538164680,0.25267927,688.81,688.59,0.54895623]
[1752538164881,0.25267927,688.81,688.6,0.54895623]
[1752538165083,0.25267927,688.81,688.61,0.54895623]
[1752538165282,0.25267927,688.81,688.62,0.54895623]
[1752538165482,0.25267927,688.81,688.63,0.54895623]
[1752538165685,0.25267927,688.81,688.64,0.54895623]
[1752538165885,0.25267927,688.81,688.65,0.54895623]
[1752538166084,0.25267927,688.81,688.66,0.54895623]
[1752538166386,0.25267927,688.81,688.67,0.54895623]
[1752538166587,0.25267927,688.81,688.68,0.54895623]
[1752538166783,0.25267927,688.81,688.02,0.97623821]
[1752538166784,0.25267927,688.81,688.69,0.54895623]
[1752538166989,0.25267927,688.81,688.7,0.54895623]
[1752538167188,0.25267927,688.81,688.71,0.54895623]
[1752538167389,0.25267927,688.81,688.72,0.54895623]
[1752538167587,0.25267927,688.81,688.73,0.54895623]
[1752538167787,0.25267927,688.81,688.74,0.54895911]
[1752538167987,0.25267927,688.81,688.75,0.54895911]
[1752538168294,0.25267927,688.81,688.76,0.54895911]
[1752538168488,0.25267927,688.81,688.77,0.54895911]
[1752538168688,0.25267927,688.81,688.78,0.54895911]
[1752538168892,0.25267927,688.81,688.79,0.54895911]
[1752538169191,0.25267927,688.81,688.8,0.54895911]
[1752538171895,0.25267927,688.81,688.8,0.54895288]
[1752538172895,0.25267927,688.81,688.8,0.54895142]
[1752538180607,0.25267927,688.81,688.08,0.97623821]
[1752538180807,0.25267927,688.81,688.09,0.54894585]
[1752538181006,0.25267927,688.81,688.1,0.54894585]
[1752538181208,0.25267927,688.81,688.11,0.54894585]
[1752538181408,0.25267927,688.81,688.12,0.54894505]
[1752538181607,0.25267927,688.81,688.13,0.54894505]
[1752538181806,0.25267927,688.81,688.14,0.54894505]
[1752538182105,0.25267927,688.81,688.15,0.54894505]
[1752538182306,0.25267927,688.81,688.16,0.54894505]
[1752538182506,0.25267927,688.81,688.17,0.54894505]
[1752538182707,0.25267927,688.81,688.18,0.54894505]
[1752538182906,0.25267927,688.81,688.19,0.54894505]
[1752538183106,0.25267927,688.81,688.2,0.54894505]
[1752538183310,0.25267927,688.81,688.21,0.54894505]
[1752538183507,0.25267927,688.81,688.22,0.54894505]
[1752538183711,0.25267927,688.81,688.23,0.54894505]
[1752538184008,0.25267927,688.81,688.24,0.54894505]
[1752538184208,0.25267927,688.81,688.25,0.54894505]
[1752538184512,0.25267927,688.81,688.26,0.54894505]
[1752538184810,0.25267927,688.81,688.27,0.54894505]
[1752538185008,0.25267927,688.81,688.28,0.54894505]
[1752538185211,0.25267927,688.81,688.29,0.54894505]
[1752538185409,0.25267927,688.81,688.3,0.54894505]
[1752538185711,0.25267927,688.81,688.31,0.54894505]
[1752538186009,0.25267927,688.81,688.32,0.54894505]
[1752538186210,0.25267927,688.81,688.33,0.54894505]
[1752538186411,0.25267927,688.81,688.34,0.54894505]
[1752538186709,0.25267927,688.81,688.35,0.54894505]
[1752538186913,0.25267927,688.81,688.36,0.54894505]
[1752538187111,0.25267927,688.81,688.37,0.54894505]
[1752538187309,0.25267927,688.81,688.38,0.54894505]
[1752538187610,0.25267927,688.81,688.39,0.54894505]
[1752538187820,0.25267927,688.81,688.4,0.54894505]
[1752538188121,0.25267927,688.81,688.41,0.54894505]
[1752538188319,0.25267927,688.81,688.42,0.54894505]
[1752538188610,0.25267927,688.81,687.49,0.25276278]
[1752538188611,0.9741421,688.74,688.43,0.54894505]
[1752538188811,0.9741421,688.73,688.44,0.54894505]
[1752538189012,0.9741421,688.73,688.45,0.54894505]
[1752538189214,0.9741421,688.73,688.46,0.54894505]
[1752538189410,0.9741421,688.73,688.47,0.54894505]
[1752538189714,0.9741421,688.67,688.48,0.54897635]
[1752538189919,1.30010591,688.57,688.49,0.54897635]
[1752538190112,1.30010591,688.71,687.67,0.97623821]
[1752538190313,0.97351647,688.51,687.68,0.54897635]
[1752538190615,0.97351647,688.51,687.69,0.54897635]
[1752538190812,0.97351647,688.47,687.7,0.54897635]
[1752538191017,0.97351647,688.47,687.71,0.54897635]
[1752538191213,0.97351647,688.46,687.72,0.54897635]
[1752538191413,0.97351647,688.39,687.73,1.52521456]
[1752538191616,0.97351647,688.39,687.74,1.52521456]
[1752538191818,0.97351647,688.38,687.75,0.54897635]
[1752538192015,0.97351647,688.37,687.76,0.54897635]
[1752538192314,0.97351647,688.46,687.77,0.54897635]
[1752538192517,0.97351647,688.46,687.78,0.54897635]
[1752538192716,0.97351647,688.46,687.79,0.54897635]
[1752538192913,0.97351647,688.46,687.8,0.54897635]
[1752538193213,0.97351647,688.47,687.81,0.54897635]
[1752538193514,0.97351647,688.48,687.82,0.54897635]
[1752538193714,0.97351647,688.4,687.83,0.54897635]
[1752538194014,2.05214284,688.39,687.84,0.54897635]
[1752538194214,0.97351647,688.39,687.85,0.54897635]
[1752538194418,0.97351647,688.41,687.86,0.54897635]
[1752538194712,0.97351647,688.49,687.87,0.54897635]
[1752538194915,0.97351647,688.49,687.88,0.54897635]
[1752538195115,0.97351647,688.49,687.89,0.54897635]
[1752538195315,0.97351647,688.5,687.9,0.54897635]
[1752538195615,0.97351647,688.51,687.91,0.54897635]
[1752538195816,0.97351647,688.51,687.92,0.54897635]
[1752538196015,0.97351647,688.51,687.93,0.54897635]
[1752538196317,0.97351647,688.52,687.94,0.54897635]
[1752538196516,0.97351647,688.52,687.95,0.54897635]
[1752538196712,0.97351647,688.57,687.96,0.54897635]
[1752538196917,0.97351647,688.6,687.97,0.54897635]
[1752538197216,0.97351647,688.6,687.98,0.54897635]
[1752538197419,0.97351647,688.61,687.99,0.54897635]
[1752538197617,0.97351647,688.61,688.0,0.54897635]
[1752538197815,0.97351647,688.61,688.01,0.54897635]
[1752538198119,0.97351647,688.58,688.02,0.54897635]
[1752538198315,0.97351647,688.58,687.65,0.97623821]
[1752538198528,0.97351647,688.58,687.66,0.54832277]
[1752538198822,0.97351647,688.58,687.67,0.54832277]
[1752538199022,0.97351647,688.58,687.68,0.54820221]
[1752538199325,0.97351647,688.67,687.7,0.97623821]
[1752538199525,0.97351647,688.67,687.71,0.54820221]
[1752538199724,0.97351647,688.67,687.72,0.54820221]
[1752538199923,0.97351647,688.67,687.73,0.54820221]
[1752538200125,0.97351647,688.67,687.74,0.54820221]
[1752538200324,0.97351647,688.67,687.75,0.54820221]
[1752538200525,0.97351647,688.67,687.76,0.54820221]
[1752538200723,0.97351647,688.67,687.77,0.54820221]
[1752538201027,0.97351647,688.67,687.78,0.54820221]
[1752538201328,0.97351647,688.67,687.79,0.54820221]
[1752538201628,0.97351647,688.65,687.8,0.54820221]
[1752538201824,0.97351647,688.65,687.81,0.54820221]
[1752538202029,0.97351647,688.65,687.82,0.54820221]
[1752538202225,0.97351647,688.66,687.83,0.54820221]
[1752538202530,0.97351647,688.66,687.84,0.54820221]
[1752538202730,0.97351647,688.66,687.85,0.54820221]
[1752538202929,0.97351647,688.66,687.86,0.54820221]
[1752538203128,0.97351647,688.66,687.87,0.54820221]
[1752538203324,0.97351647,688.66,687.88,0.54820221]
[1752538203525,0.97351647,688.65,687.89,0.54820221]
[1752538203728,0.97351647,688.65,687.9,0.54820221]
[1752538203930,0.97351647,688.65,687.91,0.54820221]
[1752538204127,0.97351647,688.63,687.92,0.54820221]
[1752538204327,0.97351647,688.62,687.93,0.54820221]
[1752538204532,0.97351647,688.62,687.94,0.54820221]
[1752538204828,0.97351647,688.62,687.95,0.54820221]
[1752538205032,0.97351647,688.62,687.96,0.54820221]
[1752538205232,0.97351647,688.62,687.97,0.54820221]
[1752538205432,1.55278518,688.81,687.98,0.54820221]
[1752538205433,0.97351647,688.66,687.98,0.54820221]
[1752538205628,0.97351647,688.66,687.99,0.54820221]
[1752538205827,0.97351647,688.66,688.0,0.54820221]
[1752538206032,0.97351647,688.65,688.01,0.54820221]
[1752538206329,0.97351647,688.65,688.02,0.54780705]
[1752538206537,0.97351647,688.65,688.03,0.54780705]
[1752538206829,0.97351647,688.65,688.04,0.54780705]
[1752538207040,0.97351647,688.65,688.05,0.54780705]
[1752538207228,0.97351647,688.65,688.06,0.54780705]
[1752538207430,0.97351647,688.64,688.07,0.54780705]
[1752538207634,0.97351647,688.63,688.08,0.54780705]
[1752538207830,0.97351647,688.63,688.09,0.54780705]
[1752538208028,0.97351647,688.63,688.1,0.54780705]
[1752538208232,0.97351647,688.64,688.11,0.5477092]
[1752538208529,0.97351647,688.64,687.5,1.30319486]
[1752538208530,0.97351647,688.63,688.12,0.5477092]
[1752538208730,0.97351647,688.63,688.13,0.5477092]
[1752538208930,0.97351647,688.63,688.14,0.5477092]
[1752538209131,0.97351647,688.62,688.15,0.5477092]
[1752538209330,0.97351647,688.62,688.16,0.54767005]
[1752538209531,0.97351647,688.62,687.7,0.97623821]
[1752538209532,0.97351647,688.62,688.17,0.54767005]
[1752538209830,0.97351647,688.62,688.18,0.54767005]
[1752538210134,0.97351647,688.63,688.19,0.54767005]
[1752538210330,0.97351647,688.63,688.2,0.54767005]
[1752538210539,0.97351647,688.63,688.21,0.54767005]
[1752538210835,0.97351647,688.63,687.7,0.97623821]
[1752538210836,0.97351647,688.63,688.22,0.54767005]
[1752538211035,0.97351647,688.63,688.23,0.54767005]
[1752538211237,0.97351647,688.63,688.24,0.54767005]
[1752538211436,0.97351647,688.63,688.25,0.54767005]
[1752538211735,0.97351647,688.63,688.26,0.54767005]
[1752538211940,0.97351647,688.63,688.27,0.54767005]
[1752538212143,0.97351647,688.63,687.69,0.97623821]
[1752538212439,0.97351647,688.63,687.7,0.54760579]
[1752538212638,0.97351647,688.63,687.71,0.54760579]
[1752538212935,0.97351647,688.69,687.72,0.54760579]
[1752538213239,0.97351647,688.69,687.73,0.54760579]
[1752538213436,0.97351647,688.69,687.74,0.54760579]
[1752538213740,0.97351647,688.71,687.75,0.54760579]
[1752538214036,0.97351647,688.71,687.76,0.54760579]
[1752538214241,0.97351647,688.71,687.77,0.54760579]
[1752538214437,0.97351647,688.71,687.78,0.54760579]
[1752538214639,0.97351647,688.71,687.79,0.54760579]
[1752538214835,0.97351647,688.71,687.8,0.54760579]
[1752538215035,0.97351647,688.71,687.71,0.97623821]
[1752538215340,0.97351647,688.71,687.72,0.54752794]
[1752538215540,0.97351647,688.71,687.73,0.54752794]
[1752538215740,0.97351647,688.71,687.74,0.54752794]
[1752538215936,0.97351647,688.71,687.75,0.54752794]
[1752538216137,0.97351647,688.71,687.76,0.54752794]
[1752538216337,0.97351647,688.71,687.71,0.97623821]
[1752538216338,0.97351647,688.71,687.77,0.54752794]
[1752538216538,0.97351647,688.71,687.78,0.54752794]
[1752538216738,0.97351647,688.71,687.79,0.54752794]
[1752538216939,0.97351647,688.71,687.8,0.54752794]
[1752538217142,0.97351647,688.71,687.81,0.54752794]
[1752538217442,0.97351647,688.71,687.82,0.54752794]
[1752538217642,0.97351647,688.71,687.83,0.54752794]
[1752538217840,0.97351647,688.71,687.84,0.54752794]
[1752538218042,0.97351647,688.71,687.85,0.54752794]
[1752538218239,0.97351647,688.71,687.86,0.54754496]
[1752538218444,0.97351647,688.71,687.87,0.54754496]
[1752538218639,0.97351647,688.71,687.88,0.54754496]
[1752538218943,0.97351647,688.71,687.89,0.54754496]
[1752538219143,0.97351647,688.71,687.9,0.54754496]
[1752538219340,0.97351647,688.71,687.91,0.54754496]
[1752538219538,0.97351647,688.71,687.92,0.54754496]
[1752538219742,0.97351647,688.71,687.93,0.54754496]
[1752538219951,0.97351647,688.7,687.94,0.54754496]
[1752538220149,0.97351647,688.71,687.95,0.54754496]
[1752538220346,0.97351647,688.71,687.71,0.97623821]
[1752538220347,0.97351647,688.71,687.96,0.54754496]
[1752538220538,0.97351647,688.72,687.97,0.54754496]
[1752538220747,0.97351647,688.7,687.98,0.54754496]
[1752538221038,0.97351647,688.7,687.99,0.54754496]
[1752538221242,0.97351647,688.7,688.0,0.54754496]
[1752538221440,0.97351647,688.7,688.01,0.54754496]
[1752538221639,0.97351647,688.68,688.02,0.54754496]
[1752538221843,0.97351647,688.68,688.03,0.54754496]
[1752538222138,0.97351647,688.68,688.04,0.54754496]
[1752538222343,0.97351647,688.68,688.05,0.54754496]
[1752538222542,0.97351647,688.67,688.06,0.54754496]
[1752538222740,0.97351647,688.67,688.07,0.54754496]
[1752538223038,0.97351647,688.67,688.08,0.54754496]
[1752538223240,0.97351647,688.66,688.09,0.54754496]
[1752538223441,0.97351647,688.65,688.1,0.54754496]
[1752538223644,0.97351647,688.65,688.11,0.54754496]
[1752538223945,0.97351647,688.65,687.77,0.97623821]
[1752538224147,0.97351647,688.65,687.78,0.54752127]
[1752538224444,0.97351647,688.64,687.79,0.54752127]
[1752538224642,0.97351647,688.62,687.8,0.54752127]
[1752538224844,0.97351647,688.62,687.79,0.97623821]
[1752538224845,0.97351647,688.62,687.81,0.54752127]
[1752538225041,0.97351647,688.62,687.82,0.54752127]
[1752538225243,0.97351647,688.62,687.83,0.54752127]
[1752538225447,0.97351647,688.62,687.84,0.54752127]
[1752538225745,0.97351647,688.62,687.85,0.54752127]
[1752538225943,0.97351647,688.62,687.86,0.54752127]
[1752538226146,0.97351647,688.62,687.87,0.54752127]
[1752538226342,0.97351647,688.62,687.88,0.54752127]
[1752538226544,0.97351647,688.62,687.89,0.54752127]
[1752538226743,0.97351647,688.62,687.9,0.54752127]
[1752538226949,0.97351647,688.62,687.91,0.54752127]
[1752538227243,0.97351647,688.62,687.92,0.54752127]
[1752538227543,0.97351647,688.62,687.93,0.54752127]
[1752538227748,0.97351647,688.62,687.94,0.54752127]
[1752538227944,0.97351647,688.62,687.95,0.54752127]
[1752538228145,0.97351647,688.62,687.96,0.54752127]
[1752538228347,0.97351647,688.61,687.97,0.54752127]
[1752538228546,0.97351647,688.61,687.98,0.54752127]
[1752538228744,0.97351647,688.61,687.99,0.54752127]
[1752538228949,0.97351647,688.61,688.0,0.54752127]
[1752538229148,0.97351647,688.6,688.01,0.54752127]
[1752538229345,0.97351647,688.6,688.02,0.54752127]
[1752538229547,0.97351647,688.6,688.03,0.54752127]
[1752538229747,1.30010591,688.76,688.04,0.54752127]
[1752538229950,0.97222843,688.6,688.05,0.54752127]
[1752538230149,0.97222843,688.6,687.8,0.97567032]
[1752538230150,0.97222843,688.6,688.06,0.54752127]
[1752538230352,0.97222843,688.6,688.07,0.54752127]
[1752538230547,0.97222843,688.59,688.08,0.54752127]
[1752538230750,0.97222843,688.61,688.09,0.54752127]
[1752538230951,0.97222843,688.61,688.1,0.54752127]
[1752538231247,0.97222843,688.6,688.11,0.54752127]
[1752538231452,0.97222843,688.6,688.12,0.54752127]
[1752538231649,0.97222843,688.6,688.13,0.54752127]
[1752538231855,0.97222843,688.58,688.14,0.54752127]